lending/lending_fUSD_20250719
["ID","MTS","AMOUNT","RATE_DAILY","PERIOD"]
[373248894,1752922293745,-192.23041294,0.00021,2]
[373248895,1752922293755,-2578.6685021,0.00021,2]
[373248896,1752922293765,-160.34,0.00021,2]
[373248897,1752922293774,-1018.0,0.00021,5]
[373248898,1752922293784,-1000.0,0.00021,5]
[373248899,1752922293794,-1000.0,0.00021,5]
[373248900,1752922293804,-1000.0,0.00021,4]
[373248901,1752922293814,-200.0,0.00021,2]
[373248902,1752922293824,-476.80070012,0.00021,7]
[373248903,1752922293835,-7448.22358881,0.00021,2]
[373248904,1752922293844,-210.82967408,0.00021,7]
[373248905,1752922293854,-412.07100781,0.00021019,2]
[373248906,1752922293864,-1687.77813,0.0002102,2]
[373248907,1752922293875,-156.587,0.0002102,2]
[373248908,1752922293884,-3504.41,0.00021029,2]
[373248909,1752922293894,-53109.54756108,0.00021037,2]
[373248910,1752922293904,-735.7,0.00021039,2]
[373248911,1752922293914,-3279.57,0.00021039,2]
[373248912,1752922293924,-480.0,0.00021039,2]
[373248913,1752922293934,-500.0,0.00021039,2]
[373248914,1752922293944,-587.04,0.00021039,2]
[373248915,1752922293953,-2970.85,0.00021039,2]
[373248916,1752922293963,-256675.27560989,0.0002104,2]
[373248917,1752922293974,-500.0,0.0002104,2]
[373248918,1752922293984,-605.49,0.00021041,2]
[373248919,1752922293994,-1000.47,0.00021041,2]
[373248920,1752922294004,-1043.59,0.00021041,2]
[373248921,1752922294014,-604.26,0.00021041,2]
[373248922,1752922294024,-480.0,0.00021041,2]
[373248923,1752922294034,-861.59,0.00021041,2]
[373248924,1752922294045,-848.57,0.00021041,2]
[373248925,1752922294055,-511.8,0.00021041,2]
[373248926,1752922294066,-687.69,0.00021041,2]
[373248927,1752922294076,-3297.54,0.00021041,2]
[373248928,1752922294087,-1455.87,0.00021041,2]
[373248929,1752922294097,-495.02,0.00021041,2]
[373248930,1752922294107,-659.75,0.00021041,2]
[373248931,1752922294117,-1574.33,0.00021041,2]
[373248932,1752922294127,-2169.2,0.00021041,2]
[373248933,1752922294137,-3376.92,0.00021041,2]
[373248934,1752922294147,-588.06,0.00021041,2]
[373248935,1752922294157,-493.46,0.00021041,2]
[373248936,1752922294167,-576.04,0.00021041,2]
[373248937,1752922294176,-480.0,0.00021041,2]
[373248938,1752922294186,-743.26,0.00021041,2]
[373248939,1752922294196,-1474.2,0.00021041,2]
[373248940,1752922294205,-2172.21,0.00021041,2]
[373248941,1752922294215,-480.0,0.00021041,2]
[373248942,1752922294225,-513.05,0.00021041,2]
[373248943,1752922294235,-1462.78,0.00021041,2]
[373248944,1752922294244,-480.0,0.00021041,2]
[373248945,1752922294254,-735.14,0.00021041,2]
[373248946,1752922294264,-357.83325872,0.00021041,2]
[373248947,1752922294883,-159.75552814,0.00018978,2]
[373248948,1752922294893,-694.66,0.00019178,2]
[373248949,1752922294903,-463.30643807,0.00019178,2]
[373248950,1752922294913,-460.0,0.00019178,2]
[373248951,1752922294923,-480.0,0.00019178,2]
[373248952,1752922294933,-103.53678216,0.00019178,2]
[373248953,1752922294945,-376.46321784,0.00019178,2]
[373248954,1752922294955,-507.55,0.00019178,2]
[373248955,1752922294964,-480.0,0.00019178,2]
[373248956,1752922294973,-694.66,0.00019287,2]
[373248957,1752922294984,-440.0,0.00019287,2]
[373248958,1752922294994,-507.55,0.00019287,2]
[373248959,1752922295003,-480.0,0.00019397,2]
[373248960,1752922295014,-694.66,0.00019397,2]
[373248961,1752922295024,-480.0,0.00019506,2]
[373248962,1752922295033,-694.66,0.00019506,2]
[373248963,1752922295043,-480.0,0.00019616,2]
[373248964,1752922295054,-694.66,0.00019616,2]
[373248965,1752922295064,-480.0,0.00019726,2]
[373248966,1752922295074,-694.66,0.00019726,2]
[373248967,1752922295084,-480.0,0.00019835,2]
[373248968,1752922295094,-694.66,0.00019835,2]
[373248969,1752922295103,-694.66,0.00019945,2]
[373248970,1752922295113,-889.0,0.00020335,2]
[373248971,1752922295124,-429.33674128,0.00021041,2]
[373248972,1752922295134,-1284.12,0.00021041,2]
[373248973,1752922295143,-1107.05,0.00021041,2]
[373248974,1752922295154,-2107.73,0.00021041,2]
[373248975,1752922295163,-480.0,0.00021041,2]
[373248976,1752922295175,-1478.58,0.00021041,2]
[373248977,1752922295185,-681.5,0.00021041,2]
[373248978,1752922295196,-2270.49,0.00021041,2]
[373248979,1752922295206,-538.13,0.00021041,2]
[373248980,1752922295215,-1412.35,0.00021041,2]
[373248981,1752922295225,-1430.96,0.00021041,2]
[373248982,1752922295235,-1208.93,0.00021041,2]
[373248983,1752922295244,-548.17,0.00021041,2]
[373248984,1752922295253,-648.45,0.00021041,2]
[373248985,1752922295263,-484.42,0.00021041,2]
[373248986,1752922295277,-643.93,0.00021041,2]
[373248987,1752922295286,-3722.95,0.00021041,2]
[373248988,1752922295297,-519.96,0.00021041,2]
[373248989,1752922295308,-1444.47,0.00021041,2]
[373248990,1752922295317,-716.2,0.00021041,2]
[373248991,1752922295327,-1010.12,0.00021041,2]
[373248992,1752922295337,-480.0,0.00021041,2]
[373248993,1752922295347,-1134.71,0.00021041,2]
[373248994,1752922295356,-1001.22,0.00021041,2]
[373248995,1752922295365,-753.66,0.00021041,2]
[373248996,1752922295375,-1926.46,0.00021041,2]
[373248997,1752922295384,-14763.9,0.00021041,2]
[373248998,1752922295394,-850.67,0.00021041,2]
[373248999,1752922295403,-504.26,0.00021041,2]
[373249000,1752922295413,-2654.42,0.00021041,2]
[373249001,1752922295422,-584.79,0.00021041,2]
[373249002,1752922295431,-3399.67,0.00021041,2]
[373249003,1752922295440,-603.57,0.00021041,2]
[373249004,1752922295450,-736.01,0.00021041,2]
[373249005,1752922295459,-528.72,0.00021041,2]
[373249006,1752922295468,-920.96,0.00021041,2]
[373249007,1752922295477,-582.63,0.00021041,2]
[373249008,1752922295487,-2078.75,0.00021041,2]
[373249009,1752922295496,-684.13,0.00021041,2]
[373249010,1752922295588,-269.39,0.00021041,2]
[373249011,1752922295598,-480.0,0.00021041,2]
[373249012,1752922295607,-1086.48,0.00021041,2]
[373249013,1752922295616,-823.27,0.00021041,2]
[373249014,1752922295626,-601.91,0.00021041,2]
[373249015,1752922295637,-513.99,0.00021041,2]
[373249016,1752922295647,-2672.28,0.00021041,2]
[373249017,1752922295656,-616.88,0.00021041,2]
[373249018,1752922295665,-1044.3,0.00021041,2]
[373249019,1752922295675,-574.67,0.00021041,2]
[373249020,1752922295685,-480.0,0.00021041,2]
[373249021,1752922295695,-813.79,0.00021041,2]
[373249022,1752922295705,-480.0,0.00021041,2]
[373249023,1752922295716,-1310.77,0.00021041,2]
[373249024,1752922295727,-3431.57,0.00021041,2]
[373249025,1752922295736,-858.48,0.00021041,2]
[373249026,1752922295746,-480.0,0.00021041,2]
[373249027,1752922295756,-497.93,0.00021041,2]
[373249028,1752922295766,-1367.34,0.00021041,2]
[373249029,1752922295776,-1524.22,0.00021041,2]
[373249030,1752922295785,-480.0,0.00021041,2]
[373249031,1752922295795,-5259.12,0.00021041,2]
[373249032,1752922295805,-480.0,0.00021041,2]
[373249033,1752922295814,-480.0,0.00021041,2]
[373249034,1752922295824,-719.816153,0.00021049,8]
[373249035,1752922295836,-500.0,0.00021073,2]
[373249036,1752922295847,-159.85538451,0.00021073,2]
[373249037,1752922295856,-159.68623185,0.00021073,2]
[373249038,1752922295866,-500.0,0.00021073,2]
[373249039,1752922295875,-500.54153946,0.00021073,2]
[373249040,1752922295885,-627.22260467,0.00021073,2]
[373249041,1752922295894,-500.0,0.00021073,2]
[373249042,1752922295904,-500.0,0.00021073,2]
[373249043,1752922295914,-484.95,0.00021078,2]
[373249044,1752922295924,-160.24,0.00021095,2]
[373249045,1752922295933,-417.0,0.000211,2]
[373249046,1752922295942,-272.30678157,0.00021139,2]
[373249047,1752922295952,-735.7,0.00021149,2]
[373249048,1752922295961,-3279.57,0.00021149,2]
[373249049,1752922295970,-480.0,0.00021149,2]
[373249050,1752922295979,-587.04,0.00021149,2]
[373249051,1752922295988,-2970.85,0.00021149,2]
[373249052,1752922295998,-605.49,0.0002115,2]
[373249053,1752922296008,-1000.47,0.0002115,2]
[373249054,1752922296017,-1043.59,0.0002115,2]
[373249055,1752922296026,-604.26,0.0002115,2]
[373249056,1752922296036,-480.0,0.0002115,2]
[373249057,1752922296045,-861.59,0.0002115,2]
[373249058,1752922296055,-848.57,0.0002115,2]
[373249059,1752922296064,-511.8,0.0002115,2]
[373249060,1752922296074,-687.69,0.0002115,2]
[373249061,1752922296084,-3297.54,0.0002115,2]
[373249062,1752922296094,-1455.87,0.0002115,2]
[373249063,1752922296104,-495.02,0.0002115,2]
[373249064,1752922296113,-659.75,0.0002115,2]
[373249065,1752922296123,-1574.33,0.0002115,2]
[373249066,1752922296133,-2169.2,0.0002115,2]
[373249067,1752922296143,-3376.92,0.0002115,2]
[373249068,1752922296152,-588.06,0.0002115,2]
[373249069,1752922296161,-493.46,0.0002115,2]
[373249070,1752922296171,-576.04,0.0002115,2]
[373249071,1752922296180,-480.0,0.0002115,2]
[373249072,1752922296190,-743.26,0.0002115,2]
[373249073,1752922296199,-1474.2,0.0002115,2]
[373249074,1752922296209,-2172.21,0.0002115,2]
[373249075,1752922296218,-480.0,0.0002115,2]
[373249076,1752922296227,-513.05,0.0002115,2]
[373249077,1752922296237,-1462.78,0.0002115,2]
[373249078,1752922296246,-480.0,0.0002115,2]
[373249079,1752922296255,-735.14,0.0002115,2]
[373249080,1752922296264,-787.17,0.0002115,2]
[373249081,1752922296273,-1284.12,0.0002115,2]
[373249082,1752922296282,-1107.05,0.0002115,2]
[373249083,1752922296292,-2107.73,0.0002115,2]
[373249084,1752922296301,-527.16,0.0002115,2]
[373249085,1752922296311,-1478.58,0.0002115,2]
[373249086,1752922296321,-681.5,0.0002115,2]
[373249087,1752922296330,-2270.49,0.0002115,2]
[373249088,1752922296340,-538.13,0.0002115,2]
[373249089,1752922296349,-1412.35,0.0002115,2]
[373249090,1752922296359,-1430.96,0.0002115,2]
[373249091,1752922296368,-1208.93,0.0002115,2]
[373249092,1752922296377,-548.17,0.0002115,2]
[373249093,1752922296387,-648.45,0.0002115,2]
[373249094,1752922296395,-484.42,0.0002115,2]
[373249095,1752922296405,-643.93,0.0002115,2]
[373249096,1752922296414,-3722.95,0.0002115,2]
[373249097,1752922296423,-519.96,0.0002115,2]
[373249098,1752922296432,-1444.47,0.0002115,2]
[373249099,1752922296441,-716.2,0.0002115,2]
[373249100,1752922296450,-1010.12,0.0002115,2]
[373249101,1752922296460,-480.0,0.0002115,2]
[373249102,1752922296469,-1134.71,0.0002115,2]
[373249103,1752922296478,-1001.22,0.0002115,2]
[373249104,1752922296487,-753.66,0.0002115,2]
[373249105,1752922296496,-1926.46,0.0002115,2]
[373249106,1752922296505,-14763.9,0.0002115,2]
[373249107,1752922296514,-850.67,0.0002115,2]
[373249108,1752922296523,-504.26,0.0002115,2]
[373249109,1752922296533,-2654.42,0.0002115,2]
[373249110,1752922296542,-584.79,0.0002115,2]
[373249111,1752922296551,-3399.67,0.0002115,2]
[373249112,1752922296561,-603.57,0.0002115,2]
[373249113,1752922296570,-736.01,0.0002115,2]
[373249114,1752922296579,-528.72,0.0002115,2]
[373249115,1752922296589,-920.96,0.0002115,2]
[373249116,1752922296598,-582.63,0.0002115,2]
[373249117,1752922296608,-2078.75,0.0002115,2]
[373249118,1752922296617,-684.13,0.0002115,2]
[373249119,1752922296626,-459.42559455,0.0002115,2]
[373249120,1752922296638,-1086.48,0.0002115,2]
[373249121,1752922296647,-823.27,0.0002115,2]
[373249122,1752922296657,-601.91,0.0002115,2]
[373249123,1752922296666,-513.99,0.0002115,2]
[373249124,1752922296675,-2672.28,0.0002115,2]
[373249125,1752922296685,-616.88,0.0002115,2]
[373249126,1752922296695,-1044.3,0.0002115,2]
[373249127,1752922296704,-574.67,0.0002115,2]
[373249128,1752922296716,-480.0,0.0002115,2]
[373249129,1752922296725,-813.79,0.0002115,2]
[373249130,1752922296734,-278.25,0.0002115,2]
[373249131,1752922296744,-1310.77,0.0002115,2]
[373249132,1752922296754,-3431.57,0.0002115,2]
[373249133,1752922296763,-858.48,0.0002115,2]
[373249134,1752922296772,-480.0,0.0002115,2]
[373249135,1752922296781,-497.93,0.0002115,2]
[373249136,1752922296790,-1367.34,0.0002115,2]
[373249137,1752922296800,-1524.22,0.0002115,2]
[373249138,1752922296810,-480.0,0.0002115,2]
[373249139,1752922296819,-5259.12,0.0002115,2]
[373249140,1752922296829,-480.0,0.0002115,2]
[373249141,1752922296840,-243.17759999,0.0002115,2]
[373249142,1752922296850,-1400.0,0.00021164,2]
[373249143,1752922296859,-600.0,0.00021206,2]
[373249144,1752922296869,-2351.0,0.00021218,2]
[373249145,1752922296880,-152.87,0.00021233,2]
[373249146,1752922296890,-735.7,0.00021258,2]
[373249147,1752922296899,-3279.57,0.00021258,2]
[373249148,1752922296908,-480.0,0.00021258,2]
[373249149,1752922296918,-605.49,0.0002126,2]
[373249150,1752922296928,-1000.47,0.0002126,2]
[373249151,1752922296937,-1043.59,0.0002126,2]
[373249152,1752922296947,-604.26,0.0002126,2]
[373249153,1752922296956,-553.03380876,0.0002126,2]
[373249154,1752922296966,-861.59,0.0002126,2]
[373249155,1752922296975,-848.57,0.0002126,2]
[373249156,1752922296985,-511.8,0.0002126,2]
[373249157,1752922296995,-687.69,0.0002126,2]
[373249158,1752922297004,-3297.54,0.0002126,2]
[373249159,1752922297014,-1455.87,0.0002126,2]
[373249160,1752922297023,-495.02,0.0002126,2]
[373249161,1752922297033,-659.75,0.0002126,2]
[373249162,1752922297043,-1574.33,0.0002126,2]
[373249163,1752922297053,-2169.2,0.0002126,2]
[373249164,1752922297062,-3376.92,0.0002126,2]
[373249165,1752922297072,-588.06,0.0002126,2]
[373249166,1752922297081,-493.46,0.0002126,2]
[373249167,1752922297092,-576.04,0.0002126,2]
[373249168,1752922297101,-331.12,0.0002126,2]
[373249169,1752922297110,-743.26,0.0002126,2]
[373249170,1752922297120,-1474.2,0.0002126,2]
[373249171,1752922297130,-2172.21,0.0002126,2]
[373249172,1752922297141,-480.0,0.0002126,2]
[373249173,1752922297150,-513.05,0.0002126,2]
[373249174,1752922297161,-1462.78,0.0002126,2]
[373249175,1752922297170,-480.0,0.0002126,2]
[373249176,1752922297180,-735.14,0.0002126,2]
[373249177,1752922297190,-787.17,0.0002126,2]
[373249178,1752922297200,-1284.12,0.0002126,2]
[373249179,1752922297209,-1107.05,0.0002126,2]
[373249180,1752922297219,-2107.73,0.0002126,2]
[373249181,1752922297229,-1478.58,0.0002126,2]
[373249182,1752922297239,-681.5,0.0002126,2]
[373249183,1752922297249,-2270.49,0.0002126,2]
[373249184,1752922297258,-538.13,0.0002126,2]
[373249185,1752922297268,-1412.35,0.0002126,2]
[373249186,1752922297279,-1430.96,0.0002126,2]
[373249187,1752922297288,-1208.93,0.0002126,2]
[373249188,1752922297298,-548.17,0.0002126,2]
[373249189,1752922297307,-648.45,0.0002126,2]
[373249190,1752922297317,-484.42,0.0002126,2]
[373249191,1752922297326,-643.93,0.0002126,2]
[373249192,1752922297336,-3722.95,0.0002126,2]
[373249193,1752922297346,-519.96,0.0002126,2]
[373249194,1752922297356,-1444.47,0.0002126,2]
[373249195,1752922297366,-716.2,0.0002126,2]
[373249196,1752922297376,-1010.12,0.0002126,2]
[373249197,1752922297386,-480.0,0.0002126,2]
[373249198,1752922297396,-1134.71,0.0002126,2]
[373249199,1752922297406,-1001.22,0.0002126,2]
[373249200,1752922297416,-753.66,0.0002126,2]
[373249201,1752922297426,-1926.46,0.0002126,2]
[373249202,1752922297437,-14763.9,0.0002126,2]
[373249203,1752922297447,-850.67,0.0002126,2]
[373249204,1752922297457,-504.26,0.0002126,2]
[373249205,1752922297466,-2654.42,0.0002126,2]
[373249206,1752922297476,-584.79,0.0002126,2]
[373249207,1752922297487,-3399.67,0.0002126,2]
[373249208,1752922297497,-603.57,0.0002126,2]
[373249209,1752922297507,-736.01,0.0002126,2]
[373249210,1752922297517,-528.72,0.0002126,2]
[373249211,1752922297527,-920.96,0.0002126,2]
[373249212,1752922297537,-582.63,0.0002126,2]
[373249213,1752922297547,-2078.75,0.0002126,2]
[373249214,1752922297557,-684.13,0.0002126,2]
[373249215,1752922297566,-1086.48,0.0002126,2]
[373249216,1752922297576,-823.27,0.0002126,2]
[373249217,1752922297585,-601.91,0.0002126,2]
[373249218,1752922297595,-513.99,0.0002126,2]
[373249219,1752922297604,-2672.28,0.0002126,2]
[373249220,1752922297614,-616.88,0.0002126,2]
[373249221,1752922297623,-1044.3,0.0002126,2]
[373249222,1752922297633,-574.67,0.0002126,2]
[373249223,1752922297647,-480.0,0.0002126,2]
[373249224,1752922297657,-813.79,0.0002126,2]
[373249225,1752922297667,-1310.77,0.0002126,2]
[373249226,1752922297677,-3431.57,0.0002126,2]
[373249227,1752922297688,-858.48,0.0002126,2]
[373249228,1752922297699,-480.0,0.0002126,2]
[373249229,1752922297709,-497.93,0.0002126,2]
[373249230,1752922297720,-1367.34,0.0002126,2]
[373249231,1752922297731,-1524.22,0.0002126,2]
[373249232,1752922297746,-480.0,0.0002126,2]
[373249233,1752922297756,-5259.12,0.0002126,2]
[373249234,1752922297766,-480.0,0.0002126,2]
[373249235,1752922297776,-269.28003631,0.00021261,2]
[373249236,1752922297786,-1500.0,0.00021268,2]
[373249237,1752922297795,-707.75531384,0.00021268,2]
[373249238,1752922297810,-1500.0,0.00021268,2]
[373249239,1752922297826,-1500.0,0.00021268,2]
[373249240,1752922297837,-1500.0,0.00021268,2]
[373249241,1752922297847,-674.50189082,0.00021268,2]
[373249242,1752922297857,-53109.54756108,0.00021317,2]
[373249243,1752922297867,-300.0,0.00021319,2]
[373249244,1752922297877,-1895.45,0.00021322,2]
[373249245,1752922297887,-169.0,0.0002133,2]
[373249246,1752922297897,-3251.83947105,0.00021363,2]
[373249247,1752922297906,-500.0,0.00021367,2]
[373249248,1752922297916,-587.04,0.00021367,2]
[373249249,1752922297926,-587.04,0.00021367,2]
[373249250,1752922297935,-587.04,0.00021367,2]
[373249251,1752922297945,-587.04,0.00021367,2]
[373249252,1752922297955,-587.11103447,0.00021367,2]
[373249253,1752922297964,-2970.85,0.00021367,2]
[373249254,1752922297974,-2970.85,0.00021367,2]
[373249255,1752922297983,-2970.85,0.00021367,2]
[373249256,1752922297993,-2970.85,0.00021367,2]
[373249257,1752922298003,-2971.04933624,0.00021367,2]
[373249258,1752922298013,-735.7,0.00021368,2]
[373249259,1752922298023,-3279.57,0.00021368,2]
[373249260,1752922298033,-480.0,0.00021368,2]
[373249261,1752922298043,-605.49,0.00021369,2]
[373249262,1752922298054,-1000.47,0.00021369,2]
[373249263,1752922298064,-1043.59,0.00021369,2]
[373249264,1752922298074,-604.26,0.00021369,2]
[373249265,1752922298084,-861.59,0.00021369,2]
[373249266,1752922298094,-848.57,0.00021369,2]
[373249267,1752922298104,-511.8,0.00021369,2]
[373249268,1752922298114,-687.69,0.00021369,2]
[373249269,1752922298124,-3297.54,0.00021369,2]
[373249270,1752922298133,-1455.87,0.00021369,2]
[373249271,1752922298144,-495.02,0.00021369,2]
[373249272,1752922298154,-659.75,0.00021369,2]
[373249273,1752922298164,-1574.33,0.00021369,2]
[373249274,1752922298174,-2169.2,0.00021369,2]
[373249275,1752922298184,-3376.92,0.00021369,2]
[373249276,1752922298194,-588.06,0.00021369,2]
[373249277,1752922298204,-493.46,0.00021369,2]
[373249278,1752922298214,-576.04,0.00021369,2]
[373249279,1752922298224,-743.26,0.00021369,2]
[373249280,1752922298234,-1474.2,0.00021369,2]
[373249281,1752922298243,-2172.21,0.00021369,2]
[373249282,1752922298253,-480.0,0.00021369,2]
[373249283,1752922298263,-513.05,0.00021369,2]
[373249284,1752922298273,-1462.78,0.00021369,2]
[373249285,1752922298282,-480.0,0.00021369,2]
[373249286,1752922298292,-735.14,0.00021369,2]
[373249287,1752922298303,-787.17,0.00021369,2]
[373249288,1752922298313,-1284.12,0.00021369,2]
[373249289,1752922298322,-1107.05,0.00021369,2]
[373249290,1752922298332,-2107.73,0.00021369,2]
[373249291,1752922298342,-1478.58,0.00021369,2]
[373249292,1752922298352,-681.5,0.00021369,2]
[373249293,1752922298362,-2270.49,0.00021369,2]
[373249294,1752922298371,-538.13,0.00021369,2]
[373249295,1752922298381,-1412.35,0.00021369,2]
[373249296,1752922298392,-1430.96,0.00021369,2]
[373249297,1752922298404,-1208.93,0.00021369,2]
[373249298,1752922298415,-548.17,0.00021369,2]
[373249299,1752922298425,-648.45,0.00021369,2]
[373249300,1752922298435,-484.42,0.00021369,2]
[373249301,1752922298446,-643.93,0.00021369,2]
[373249302,1752922298456,-3722.95,0.00021369,2]
[373249303,1752922298467,-519.96,0.00021369,2]
[373249304,1752922298478,-1444.47,0.00021369,2]
[373249305,1752922298487,-716.2,0.00021369,2]
[373249306,1752922298497,-1010.12,0.00021369,2]
[373249307,1752922298507,-480.0,0.00021369,2]
[373249308,1752922298517,-1134.71,0.00021369,2]
[373249309,1752922298526,-1001.22,0.00021369,2]
[373249310,1752922298536,-753.66,0.00021369,2]
[373249311,1752922298546,-1926.46,0.00021369,2]
[373249312,1752922298557,-14763.9,0.00021369,2]
[373249313,1752922298568,-850.67,0.00021369,2]
[373249314,1752922298578,-504.26,0.00021369,2]
[373249315,1752922298587,-2654.42,0.00021369,2]
[373249316,1752922298597,-584.79,0.00021369,2]
[373249317,1752922298608,-3399.67,0.00021369,2]
[373249318,1752922298619,-603.57,0.00021369,2]
[373249319,1752922298629,-736.01,0.00021369,2]
[373249320,1752922298643,-528.72,0.00021369,2]
[373249321,1752922298653,-920.96,0.00021369,2]
[373249322,1752922298663,-582.63,0.00021369,2]
[373249323,1752922298672,-2078.75,0.00021369,2]
[373249324,1752922298683,-684.13,0.00021369,2]
[373249325,1752922298692,-1086.48,0.00021369,2]
[373249326,1752922298701,-823.27,0.00021369,2]
[373249327,1752922298712,-601.91,0.00021369,2]
[373249328,1752922298722,-513.99,0.00021369,2]
[373249329,1752922298732,-2672.28,0.00021369,2]
[373249330,1752922298742,-616.88,0.00021369,2]
[373249331,1752922298751,-1044.3,0.00021369,2]
[373249332,1752922298761,-574.67,0.00021369,2]
[373249333,1752922298771,-480.0,0.00021369,2]
[373249334,1752922298781,-813.79,0.00021369,2]
[373249335,1752922298792,-1310.77,0.00021369,2]
[373249336,1752922298801,-3431.57,0.00021369,2]
[373249337,1752922298811,-858.48,0.00021369,2]
[373249338,1752922298821,-480.0,0.00021369,2]
[373249339,1752922298831,-497.93,0.00021369,2]
[373249340,1752922298842,-1367.34,0.00021369,2]
[373249341,1752922298852,-1524.22,0.00021369,2]
[373249342,1752922298861,-480.0,0.00021369,2]
[373249343,1752922298872,-5259.12,0.00021369,2]
[373249344,1752922298882,-480.0,0.00021369,2]
[373249345,1752922298892,-5192.94,0.0002137,2]
[373249346,1752922298901,-513.18,0.00021409,2]
[373249347,1752922298912,-2500.0,0.00021464,2]
[373249348,1752922298922,-735.7,0.00021478,2]
[373249349,1752922298932,-3279.57,0.00021478,2]
[373249350,1752922298942,-480.0,0.00021478,2]
[373249351,1752922298953,-605.49,0.00021479,2]
[373249352,1752922298963,-1000.47,0.00021479,2]
[373249353,1752922298973,-1043.59,0.00021479,2]
[373249354,1752922298983,-604.26,0.00021479,2]
[373249355,1752922298992,-861.59,0.00021479,2]
[373249356,1752922299003,-848.57,0.00021479,2]
[373249357,1752922299013,-511.8,0.00021479,2]
[373249358,1752922299023,-687.69,0.00021479,2]
[373249359,1752922299033,-3297.54,0.00021479,2]
[373249360,1752922299043,-1455.87,0.00021479,2]
[373249361,1752922299053,-495.02,0.00021479,2]
[373249362,1752922299062,-659.75,0.00021479,2]
[373249363,1752922299073,-1574.33,0.00021479,2]
[373249364,1752922299082,-2169.2,0.00021479,2]
[373249365,1752922299093,-3376.92,0.00021479,2]
[373249366,1752922299103,-588.06,0.00021479,2]
[373249367,1752922299113,-493.46,0.00021479,2]
[373249368,1752922299123,-576.04,0.00021479,2]
[373249369,1752922299133,-743.26,0.00021479,2]
[373249370,1752922299143,-1474.2,0.00021479,2]
[373249371,1752922299153,-2172.21,0.00021479,2]
[373249372,1752922299163,-480.0,0.00021479,2]
[373249373,1752922299172,-513.05,0.00021479,2]
[373249374,1752922299182,-1462.78,0.00021479,2]
[373249375,1752922299192,-338.60457221,0.00021479,2]
[373249376,1752922299202,-735.14,0.00021479,2]
[373249377,1752922299211,-787.17,0.00021479,2]
[373249378,1752922299221,-1284.12,0.00021479,2]
[373249379,1752922299231,-1107.05,0.00021479,2]
[373249380,1752922299241,-2107.73,0.00021479,2]
[373249381,1752922299251,-1478.58,0.00021479,2]
[373249382,1752922299261,-681.5,0.00021479,2]
[373249383,1752922299271,-2270.49,0.00021479,2]
[373249384,1752922299280,-538.13,0.00021479,2]
[373249385,1752922299290,-1412.35,0.00021479,2]
[373249386,1752922299301,-1430.96,0.00021479,2]
[373249387,1752922299311,-1208.93,0.00021479,2]
[373249388,1752922299320,-548.17,0.00021479,2]
[373249389,1752922299330,-648.45,0.00021479,2]
[373249390,1752922299341,-484.42,0.00021479,2]
[373249391,1752922299351,-643.93,0.00021479,2]
[373249392,1752922299361,-3722.95,0.00021479,2]
[373249393,1752922299370,-519.96,0.00021479,2]